{"text_format":"3","workbook":"xlsx","n_sheets":1,"sheets":["Budget No profit"],"not_rendered":{"charts":2,"images":1,"defined_names":1},"read":"whole","date_system":"1900"}

{"sheet":"Budget No profit","index":0,"n_rows":40,"n_cols":7,"rows_kept":40,"merged":[[16,1,16,6],[21,1,21,5]]}
[null,"Budget No profit",{"$nulls":3},"ANNO CONTABILE",2012]
{"$rows_empty":7}
[null,null,{"$f":"CONCATENATE(\"AC \",Annocontabile-1)","v":"AC 2011"},{"$f":"CONCATENATE(\"AC \",Annocontabile)","v":"AC 2012"},{"$f":"CONCATENATE(\"AC \",Annocontabile)","v":"AC 2012"},{"$f":"CONCATENATE(\"AC \",Annocontabile)","v":"AC 2012"},{"$f":"CONCATENATE(\"AC \",Annocontabile)","v":"AC 2012"}]
[null,"ENTRATE","ANNO PRECEDENTE","PROPOSTO","EFFETTIVO","VARIANZA","+/- ANNO PRECEDENTE"]
[null,"Raccolta di fondi ed eventi",{"v":150000,"d":"150000.00"},{"v":200000,"d":"200000.00"},{"v":180000,"d":"180000.00"},{"$f":"TabellaEntrate[[#This Row],[EFFETTIVO]]-TabellaEntrate[[#This Row],[PROPOSTO]]","v":{"v":-20000,"d":"-20000.00"}},{"$f":"TabellaEntrate[[#This Row],[EFFETTIVO]]-TabellaEntrate[[#This Row],[ANNO PRECEDENTE]]","v":{"v":30000,"d":"30000.00"}}]
[null,"Fondazione",{"v":50000,"d":"50000.00"},{"v":50000,"d":"50000.00"},{"v":50000,"d":"50000.00"},{"$f":"TabellaEntrate[[#This Row],[EFFETTIVO]]-TabellaEntrate[[#This Row],[PROPOSTO]]","v":{"v":0,"d":"0.00"}},{"$f":"TabellaEntrate[[#This Row],[EFFETTIVO]]-TabellaEntrate[[#This Row],[ANNO PRECEDENTE]]","v":{"v":0,"d":"0.00"}}]
[null,"Donazioni",{"v":30000,"d":"30000.00"},{"v":40000,"d":"40000.00"},{"v":20000,"d":"20000.00"},{"$f":"TabellaEntrate[[#This Row],[EFFETTIVO]]-TabellaEntrate[[#This Row],[PROPOSTO]]","v":{"v":-20000,"d":"-20000.00"}},{"$f":"TabellaEntrate[[#This Row],[EFFETTIVO]]-TabellaEntrate[[#This Row],[ANNO PRECEDENTE]]","v":{"v":-10000,"d":"-10000.00"}}]
[null,"Interessi ricevuti",{"$nulls":3},{"$f":"TabellaEntrate[[#This Row],[EFFETTIVO]]-TabellaEntrate[[#This Row],[PROPOSTO]]","v":{"v":0,"d":"0.00"}},{"$f":"TabellaEntrate[[#This Row],[EFFETTIVO]]-TabellaEntrate[[#This Row],[ANNO PRECEDENTE]]","v":{"v":0,"d":"0.00"}}]
[null,"Varie",{"$nulls":3},{"$f":"TabellaEntrate[[#This Row],[EFFETTIVO]]-TabellaEntrate[[#This Row],[PROPOSTO]]","v":{"v":0,"d":"0.00"}},{"$f":"TabellaEntrate[[#This Row],[EFFETTIVO]]-TabellaEntrate[[#This Row],[ANNO PRECEDENTE]]","v":{"v":0,"d":"0.00"}}]
[null,"TOTALI",{"$f":"SUBTOTAL(109,TabellaEntrate[ANNO PRECEDENTE])","v":{"v":230000,"d":"€ 230,000.00"}},{"$f":"SUBTOTAL(109,TabellaEntrate[PROPOSTO])","v":{"v":290000,"d":"€ 290,000.00"}},{"$f":"SUBTOTAL(109,TabellaEntrate[EFFETTIVO])","v":{"v":250000,"d":"€ 250,000.00"}},{"$f":"SUBTOTAL(109,TabellaEntrate[VARIANZA])","v":{"v":-40000,"d":"-€ 40,000.00"}},{"$f":"SUBTOTAL(105,TabellaEntrate[+/- ANNO PRECEDENTE])","v":{"v":-10000,"d":"-€ 10,000.00"}}]
{"$rows_empty":8}
[null,null,{"$f":"CONCATENATE(\"AC \",Annocontabile-1)","v":"AC 2011"},{"$f":"CONCATENATE(\"AC \",Annocontabile)","v":"AC 2012"},{"$f":"CONCATENATE(\"AC \",Annocontabile)","v":"AC 2012"},{"$f":"CONCATENATE(\"AC \",Annocontabile)","v":"AC 2012"},{"$f":"CONCATENATE(\"AC \",Annocontabile)","v":"AC 2012"}]
[null,"SPESE","ANNO PRECEDENTE","PROPOSTO","EFFETTIVO","VARIANZA","+/- ANNO PRECEDENTE"]
[null,"Stipendi",{"v":15000,"d":"15,000.00"},{"v":30000,"d":"30,000.00"},{"v":30000,"d":"30,000.00"},{"$f":"TabellaSpese[[#This Row],[EFFETTIVO]]-TabellaSpese[[#This Row],[PROPOSTO]]","v":{"v":0,"d":"0.00"}},{"$f":"TabellaSpese[[#This Row],[EFFETTIVO]]-TabellaSpese[[#This Row],[ANNO PRECEDENTE]]","v":{"v":15000,"d":"15,000.00"}}]
[null,"Vantaggi",{"v":5000,"d":"5,000.00"},{"v":7500,"d":"7,500.00"},{"v":7800,"d":"7,800.00"},{"$f":"TabellaSpese[[#This Row],[EFFETTIVO]]-TabellaSpese[[#This Row],[PROPOSTO]]","v":{"v":300,"d":"300.00"}},{"$f":"TabellaSpese[[#This Row],[EFFETTIVO]]-TabellaSpese[[#This Row],[ANNO PRECEDENTE]]","v":{"v":2800,"d":"2,800.00"}}]
[null,"Affitto",{"v":6000,"d":"6,000.00"},{"v":6000,"d":"6,000.00"},{"v":6000,"d":"6,000.00"},{"$f":"TabellaSpese[[#This Row],[EFFETTIVO]]-TabellaSpese[[#This Row],[PROPOSTO]]","v":{"v":0,"d":"0.00"}},{"$f":"TabellaSpese[[#This Row],[EFFETTIVO]]-TabellaSpese[[#This Row],[ANNO PRECEDENTE]]","v":{"v":0,"d":"0.00"}}]
[null,"Luce e gas",{"v":1000,"d":"1,000.00"},{"v":1200,"d":"1,200.00"},{"v":1150,"d":"1,150.00"},{"$f":"TabellaSpese[[#This Row],[EFFETTIVO]]-TabellaSpese[[#This Row],[PROPOSTO]]","v":{"v":-50,"d":"-50.00"}},{"$f":"TabellaSpese[[#This Row],[EFFETTIVO]]-TabellaSpese[[#This Row],[ANNO PRECEDENTE]]","v":{"v":150,"d":"150.00"}}]
[null,"Viaggi e riunioni",{"v":2500,"d":"2,500.00"},{"v":2000,"d":"2,000.00"},{"v":2800,"d":"2,800.00"},{"$f":"TabellaSpese[[#This Row],[EFFETTIVO]]-TabellaSpese[[#This Row],[PROPOSTO]]","v":{"v":800,"d":"800.00"}},{"$f":"TabellaSpese[[#This Row],[EFFETTIVO]]-TabellaSpese[[#This Row],[ANNO PRECEDENTE]]","v":{"v":300,"d":"300.00"}}]
[null,"Spese professionali",{"$nulls":3},{"$f":"TabellaSpese[[#This Row],[EFFETTIVO]]-TabellaSpese[[#This Row],[PROPOSTO]]","v":{"v":0,"d":"0.00"}},{"$f":"TabellaSpese[[#This Row],[EFFETTIVO]]-TabellaSpese[[#This Row],[ANNO PRECEDENTE]]","v":{"v":0,"d":"0.00"}}]
[null,"Marketing/pubblicità",{"$nulls":3},{"$f":"TabellaSpese[[#This Row],[EFFETTIVO]]-TabellaSpese[[#This Row],[PROPOSTO]]","v":{"v":0,"d":"0.00"}},{"$f":"TabellaSpese[[#This Row],[EFFETTIVO]]-TabellaSpese[[#This Row],[ANNO PRECEDENTE]]","v":{"v":0,"d":"0.00"}}]
[null,"Assicurazione",{"$nulls":3},{"$f":"TabellaSpese[[#This Row],[EFFETTIVO]]-TabellaSpese[[#This Row],[PROPOSTO]]","v":{"v":0,"d":"0.00"}},{"$f":"TabellaSpese[[#This Row],[EFFETTIVO]]-TabellaSpese[[#This Row],[ANNO PRECEDENTE]]","v":{"v":0,"d":"0.00"}}]
[null,"Telefono",{"$nulls":3},{"$f":"TabellaSpese[[#This Row],[EFFETTIVO]]-TabellaSpese[[#This Row],[PROPOSTO]]","v":{"v":0,"d":"0.00"}},{"$f":"TabellaSpese[[#This Row],[EFFETTIVO]]-TabellaSpese[[#This Row],[ANNO PRECEDENTE]]","v":{"v":0,"d":"0.00"}}]
[null,"Spese Web (sito Web, spazio riunioni, ecc.)",{"$nulls":3},{"$f":"TabellaSpese[[#This Row],[EFFETTIVO]]-TabellaSpese[[#This Row],[PROPOSTO]]","v":{"v":0,"d":"0.00"}},{"$f":"TabellaSpese[[#This Row],[EFFETTIVO]]-TabellaSpese[[#This Row],[ANNO PRECEDENTE]]","v":{"v":0,"d":"0.00"}}]
[null,"Apparecchiature",{"$nulls":3},{"$f":"TabellaSpese[[#This Row],[EFFETTIVO]]-TabellaSpese[[#This Row],[PROPOSTO]]","v":{"v":0,"d":"0.00"}},{"$f":"TabellaSpese[[#This Row],[EFFETTIVO]]-TabellaSpese[[#This Row],[ANNO PRECEDENTE]]","v":{"v":0,"d":"0.00"}}]
[null,"Forniture",{"$nulls":3},{"$f":"TabellaSpese[[#This Row],[EFFETTIVO]]-TabellaSpese[[#This Row],[PROPOSTO]]","v":{"v":0,"d":"0.00"}},{"$f":"TabellaSpese[[#This Row],[EFFETTIVO]]-TabellaSpese[[#This Row],[ANNO PRECEDENTE]]","v":{"v":0,"d":"0.00"}}]
[null,"Affrancatura",{"$nulls":3},{"$f":"TabellaSpese[[#This Row],[EFFETTIVO]]-TabellaSpese[[#This Row],[PROPOSTO]]","v":{"v":0,"d":"0.00"}},{"$f":"TabellaSpese[[#This Row],[EFFETTIVO]]-TabellaSpese[[#This Row],[ANNO PRECEDENTE]]","v":{"v":0,"d":"0.00"}}]
[null,"TOTALI",{"$f":"SUBTOTAL(109,TabellaSpese[ANNO PRECEDENTE])","v":{"v":29500,"d":"€ 29,500.00"}},{"$f":"SUBTOTAL(109,TabellaSpese[PROPOSTO])","v":{"v":46700,"d":"€ 46,700.00"}},{"$f":"SUBTOTAL(109,TabellaSpese[EFFETTIVO])","v":{"v":47750,"d":"€ 47,750.00"}},{"$f":"SUBTOTAL(109,TabellaSpese[VARIANZA])","v":{"v":1050,"d":"€ 1,050.00"}},{"$f":"SUBTOTAL(109,TabellaSpese[+/- ANNO PRECEDENTE])","v":{"v":18250,"d":"€ 18,250.00"}}]